Workbook

Sheet ESTIMATE
C1: PROJECT: STORAGE BUILDING AT GADSDEN CITY HS ATHLETIC FIELDS | N1: Web: http://sigmaestimations.com Email: info@sigmaestimations.com
C3: LOCATION: GADSDEN, ALABAMA
A5: ITEM # | B5: DWG # | C5: CSI #/SUB DETAIL | D5: DESCRIPTION | E5: QTY. | F5: WASTE | G5: QTY. W/ WASTE | H5: UNIT | I5: UNIT LABOR HOURS | J5: TOTAL LABOR HOURS | K5: PER HOUR LABOR RATE | L5: TOTAL LABOR COST | M5: UNIT MATERIAL COST | N5: TOTAL MATERIAL COST | O5: ITEM COST | P5: TRADE COST
C6: 010000 | D6: DIVISION 01 — GENERAL REQUIREMENTS
A7: =IF(H7<>"",1+MAX(A1:A6),"") -> 1 | D7: Submittal Procedures | E7: 1 | F7: 0% | G7: =E7+(E7*F7) -> 1 | H7: LS | I7: 0.00 | J7: =I7*G7 -> 0.00 | K7: 0 | L7: =K7*J7 -> 0 | M7: 0 | N7: =M7*G7 -> 0 | O7: =L7+N7 -> 0
A8: =IF(H8<>"",1+MAX(A2:A7),"") -> 2 | D8: Temporary Facilities and Controls | E8: 1 | F8: 0% | G8: 1 | H8: LS | I8: 0.00 | J8: 0.00 | K8: 0 | L8: 0 | M8: 0 | N8: 0 | O8: 0
A9: 3 | D9: Closeout Procedures | E9: 1 | F9: 0% | G9: 1 | H9: LS | I9: 0.00 | J9: 0.00 | K9: 0 | L9: 0 | M9: 0 | N9: 0 | O9: 0
A10: 4 | D10: Payment Procedures | E10: 1 | F10: 0% | G10: 1 | H10: LS | I10: 0.00 | J10: 0.00 | K10: 0 | L10: 0 | M10: 0 | N10: 0 | O10: 0
A11: 5 | D11: Contract Modification Procedures | E11: 1 | F11: 0% | G11: 1 | H11: LS | I11: 0.00 | J11: 0.00 | K11: 0 | L11: 0 | M11: 0 | N11: 0 | O11: 0
A12: 6 | D12: Maintenance & Traffic Protection | E12: 1 | F12: 0% | G12: 1 | H12: LS | I12: 0.00 | J12: 0.00 | K12: 0 | L12: 0 | M12: 0 | N12: 0 | O12: 0
D13: SUBTOTAL | L13: =IF(H13<>"",0.4*N13,"") ->  | M13: =IF(H13<>"",N13-L13,"") ->  | P13: =SUM(O7:O12) -> 0
A14: =IF(H14<>"",1+MAX(A9:A13),"") ->  | C14: 030000 | D14: DIVISION 03 — CONCRETE
A15: =IF(H15<>"",1+MAX(A10:A14),"") -> 
A16: =IF(H16<>"",1+MAX(A11:A15),"") ->  | D16: Grade Beams 3000 PSI
A17: =IF(H17<>"",1+MAX(A7:A16),"") -> 7 | B17: S1.1 | C17: S1.1 | D17: 1'-4''x2' Grade Beam (235 LF) | E17: =2.06*235.12/27 -> 18 | F17: 5% | G17: =E17+(E17*F17) -> 19 | H17: CY | I17: 1.18 | J17: =I17*G17 -> 22.25 | K17: $58.68 | L17: =K17*J17 -> $1,305.61 | M17: $257.25 | N17: =M17*G17 -> $4,845.49 | O17: =L17+N17 -> $6,151
A18: 8 | B18: S1.1 | C18: S1.1 | D18: (2) #5 Cont. T&B | E18: =2*2*235.12*1.043 -> 981 | F18: 5% | G18: =E18+(E18*F18) -> 1030 | H18: LBS | I18: 0.01 | J18: =I18*G18 -> 8.34 | K18: $58.68 | L18: =K18*J18 -> $489.55 | M18: $1.13 | N18: =M18*G18 -> $1,167.98 | O18: =L18+N18 -> $1,658
A19: 9 | B19: S1.1 | C19: S1.1 | D19: #3 Ties @ 3' O.C | E19: =(235.12/3)*(1.33+1.33+2+2)*0.376 -> 196 | F19: 5% | G19: 206 | H19: LBS | I19: 0.01 | J19: 1.67 | K19: $58.68 | L19: $97.95 | M19: $1.13 | N19: $233.69 | O19: $332
A21: 10 | B21: S1.1 | C21: S1.1 | D21: Formwork for cont. Footing | E21: =235*2 -> 470 | F21: 5% | G21: =E21+(E21*F21) -> 494 | H21: SF | I21: 0.02 | J21: =I21*G21 -> 11.10 | K21: $58.68 | L21: =K21*J21 -> $651.57 | M21: $3.15 | N21: =M21*G21 -> $1,554.53 | O21: =L21+N21 -> $2,206
D23: Pad Footing 3000 PSI
A24: 11 | B24: S1.1 | C24: S1.1 | D24: 3'-6''x3'-6''x1' SF-4 Pad Footing (4 EA) | E24: =(3.5*3.5*1/27)*4 -> 2 | F24: 5% | G24: =E24+(E24*F24) -> 2 | H24: CY | I24: 1.18 | J24: =I24*G24 -> 2.25 | K24: $58.68 | L24: =K24*J24 -> $132.09 | M24: $257.25 | N24: =M24*G24 -> $490.20 | O24: =L24+N24 -> $622
A25: 12 | B25: S1.1 | C25: S1.1 | D25: (4) #5 E.W | E25: =(4*3.5*2*1.043)*4 -> 117 | F25: 5% | G25: =E25+(E25*F25) -> 123 | H25: LBS | I25: 0.01 | J25: =I25*G25 -> 0.99 | K25: $58.68 | L25: =K25*J25 -> $58.30 | M25: $1.13 | N25: =M25*G25 -> $139.09 | O25: =L25+N25 -> $197
A27: 13 | B27: S1.1 | C27: S1.1 | D27: 2'-6''x2'-6''x1' SF-2 Pad Footing (4 EA) | E27: =(2.5*2.5*1/27)*4 -> 1 | F27: 5% | G27: 1 | H27: CY | I27: 1.18 | J27: 1.15 | K27: $58.68 | L27: $67.39 | M27: $257.25 | N27: $250.10 | O27: $317
A28: 14 | B28: S1.1 | C28: S1.1 | D28: (3) #5 E.W | E28: =(3*2.5*2*1.043)*4 -> 63 | F28: 5% | G28: =E28+(E28*F28) -> 66 | H28: LBS | I28: 0.01 | J28: =I28*G28 -> 0.53 | K28: $58.68 | L28: =K28*J28 -> $31.23 | M28: $1.13 | N28: =M28*G28 -> $74.51 | O28: =L28+N28 -> $106
A30: 15 | B30: S1.1 | C30: S1.1 | D30: 3'x3'x1' SF-3 Pad Footing (4 EA) | E30: =(3*3*1/27)*4 -> 1 | F30: 5% | G30: 1 | H30: CY | I30: 1.18 | J30: 1.65 | K30: $58.68 | L30: $97.04 | M30: $257.25 | N30: $360.15 | O30: $457
A31: 16 | B31: S1.1 | C31: S1.1 | D31: (4) #5 E.W | E31: =(4*3*2*1.043)*4 -> 100 | F31: 5% | G31: =E31+(E31*F31) -> 105 | H31: LBS | I31: 0.01 | J31: =I31*G31 -> 0.85 | K31: $58.68 | L31: =K31*J31 -> $49.97 | M31: $1.13 | N31: =M31*G31 -> $119.22 | O31: =L31+N31 -> $169
A33: 17 | B33: S1.1 | C33: S1.1 | D33: Formwork | E33: =(14*1*4)+(10*1*4)+(12*1*4) -> 144 | F33: 5% | G33: =E33+(E33*F33) -> 151 | H33: SF | I33: 0.02 | J33: =I33*G33 -> 3.40 | K33: $58.68 | L33: =K33*J33 -> $199.63 | M33: $3.15 | N33: =M33*G33 -> $476.28 | O33: =L33+N33 -> $676
D35: Concrete Piers 3000 PSI
A37: 18 | B37: S1.1 | C37: 5/S1.1 | D37: 1'-4''X1'-4''x1'-6'' Concrete Pier (4 EA) | E37: =(1.33*1.33*1.5/27)*4 -> 0.39 | F37: 5% | G37: =E37+(E37*F37) -> 0.41 | H37: CY | I37: 1.18 | J37: =I37*G37 -> 0.49 | K37: $58.68 | L37: =K37*J37 -> $28.61 | M37: $257.25 | N37: =M37*G37 -> $106.18 | O37: =L37+N37 -> $135
A38: 19 | B38: S1.1 | C38: 5/S1.1 | D38: (4) #6 Vert. | E38: =(4*2.5*1.502)*4 -> 60 | F38: 5% | G38: 63 | H38: LBS | I38: 0.01 | J38: 0.51 | K38: $58.68 | L38: $29.98 | M38: $1.13 | N38: $71.54 | O38: $102
A39: 20 | B39: S1.1 | C39: 5/S1.1 | D39: #3 Ties @ 12'' O.C | E39: =(1.5/1)*(1.33*4)*0.376*4 -> 12 | F39: 5% | G39: 13 | H39: LBS | I39: 0.01 | J39: 0.10 | K39: $58.68 | L39: $5.99 | M39: $1.13 | N39: $14.29 | O39: $20
A41: 21 | B41: S1.1 | C41: 2/S1.1 | D41: 2'X1'-4''x1'-6'' Concrete Pier (8 EA) | E41: =(2*1.33*1.5/27)*8 -> 1 | F41: 5% | G41: =E41+(E41*F41) -> 1 | H41: SF | I41: 1.18 | J41: =I41*G41 -> 1.47 | K41: $58.68 | L41: =K41*J41 -> $86.04 | M41: $257.25 | N41: =M41*G41 -> $319.33 | O41: =L41+N41 -> $405
A42: 22 | B42: S1.1 | C42: 2/S1.1 | D42: (6) #6 Vert. | E42: =(6*2.5*1.502)*8 -> 180 | F42: 5% | G42: 189 | H42: LBS | I42: 0.01 | J42: 1.53 | K42: $58.68 | L42: $89.95 | M42: $1.13 | N42: $214.61 | O42: $305
A43: 23 | B43: S1.1 | C43: 2/S1.1 | D43: #3 Ties @ 12'' O.C | E43: =(1.5/1)*(1.33+1.33+2+2)*0.376*8 -> 30 | F43: 5% | G43: 32 | H43: LBS | I43: 0.01 | J43: 0.26 | K43: $58.68 | L43: $15.00 | M43: $1.13 | N43: $35.78 | O43: $51
A45: 24 | B45: S1.1 | C45: S1.1 | D45: Formwork | E45: =(5.33*1.5*4)+(6.667*1.5*8) -> 112 | F45: 5% | G45: =E45+(E45*F45) -> 118 | H45: SF | I45: 0.02 | J45: =I45*G45 -> 2.65 | K45: $58.68 | L45: =K45*J45 -> $155.25 | M45: $3.15 | N45: =M45*G45 -> $370.39 | O45: =L45+N45 -> $526
D47: Slab 4000 PSI
A48: 25 | B48: S1.1 | C48: S1.1 | D48: 6'' Concrete Slab on Grade | E48: 3601 | F48: 5% | G48: =E48+(E48*F48) -> 3781 | H48: SF | I48: 0.03 | J48: =I48*G48 -> 110.59 | K48: $58.68 | L48: =K48*J48 -> $6,489.67 | M48: $4.10 | N48: =M48*G48 -> $15,483.18 | O48: =L48+N48 -> $21,973
A49: 26 | B49: S1.1 | C49: S1.1 | D49: 6x6-6/6 WWF | E49: 3601 | F49: 5% | G49: 3781 | H49: SF | I49: 0.01 | J49: 42.54 | K49: $58.68 | L49: $2,496.03 | M49: $1.58 | N49: $5,955.07 | O49: $8,451
A50: 27 | B50: S1.1 | C50: S1.1 | D50: Vapor Barrier 10 Mil Assumed | E50: 3601 | F50: 5% | G50: 3781 | H50: SF | I50: 0.01 | J50: 34.03 | K50: $58.68 | L50: $1,996.82 | M50: $1.26 | N50: $4,764.06 | O50: $6,761
A51: 28 | B51: S1.1 | C51: S1.1 | D51: 4'' Porous Fill (ABC) | E51: =0.33*3600.95/27 -> 44 | F51: 5% | G51: 46 | H51: CY | I51: 0.14 | J51: 6.24 | K51: $58.68 | L51: $366.08 | M51: $18.90 | N51: $873.41 | O51: $1,239
A52: 29 | B52: S1.1 | C52: S1.1 | D52: Subbase compaction | E52: 3601 | F52: 5% | G52: 3781 | H52: SF | I52: 0.01 | J52: 51.04 | K52: $58.68 | L52: $2,995.23 | M52: 0 | N52: 0 | O52: $2,995
A53: 30 | B53: S1.1 | C53: S1.1 | D53: Curing Compound Assumed | E53: 3601 | F53: 5% | G53: =E53+(E53*F53) -> 3781 | H53: SF | I53: 0.00 | J53: =I53*G53 -> 3.40 | K53: $58.68 | L53: =K53*J53 -> $199.68 | M53: $0.13 | N53: =M53*G53 -> $476.41 | O53: =L53+N53 -> $676
A54: 31 | B54: S1.1 | C54: S1.1 | D54: #5 Hairpin (20' Cut Length) (5 EA) | E54: =(20*1.043)*5 -> 104 | F54: 5% | G54: =E54+(E54*F54) -> 110 | H54: LBS | I54: 0.01 | J54: =I54*G54 -> 0.89 | K54: $58.68 | L54: =K54*J54 -> $52.05 | M54: $1.13 | N54: =M54*G54 -> $124.19 | O54: =L54+N54 -> $176
A55: 32 | B55: S1.1 | C55: 3/S1.1 | D55: 1/8''x2'' Sawed Control Joints Fill joints w/ Sonneborn SL-1 | E55: 232 | F55: 5% | G55: 243 | H55: LF | I55: 0.01 | J55: 2.74 | K55: $58.68 | L55: $160.53 | M55: $1.58 | N55: $382.99 | O55: $544
A56: 33 | B56: S1.1 | C56: 3/S1.1 | D56: Float Finish | E56: 3601 | F56: 5% | G56: 3781 | H56: SF | I56: 0.01 | J56: =I56*G56 -> 37.43 | K56: $58.68 | L56: =K56*J56 -> $2,196.50 | M56: $1.39 | N56: =M56*G56 -> $5,240.46 | O56: =L56+N56 -> $7,437
D58: Misc.
A59: 34 | B59: S1.1 | C59: S1.1 | D59: Anchor bolts Per PEMB mfr. | E59: =12*4 -> 48 | F59: 0% | G59: =E59+(E59*F59) -> 48 | H59: EA | I59: 0.08 | J59: =I59*G59 -> 3.80 | K59: $58.68 | L59: =K59*J59 -> $222.86 | M59: $29.54 | N59: =M59*G59 -> $1,417.86 | O59: =L59+N59 -> $1,641
A60: 35 | B60: S1.1 | C60: S1.1 | D60: Concrete Pump Allowance | E60: 1 | F60: 0% | G60: =E60+(E60*F60) -> 1 | H60: LS | I60: 10.69 | J60: =I60*G60 -> 10.69 | K60: $58.68 | L60: =K60*J60 -> $627.14 | M60: 0 | N60: =M60*G60 -> 0 | O60: =L60+N60 -> $627
D62: SUBTOTAL | L62: =IF(H62<>"",0.4*N62,"") ->  | P62: =SUM(O15:O61) -> $66,955
C63: 310000 | D63: DIVISION 31 — EARTHWORK
D65: Earthwork for Utilities
A66: 36 | B66: C.1 | C66: C.1 | D66: Excavation for 36'' RCP Pipe | E66: 194 | F66: 5% | G66: =E66+(E66*F66) -> 204 | H66: CY | I66: 0.39 | J66: =I66*G66 -> 80.18 | K66: $58.68 | L66: =K66*J66 -> $4,704.84 | M66: 0 | N66: =M66*G66 -> 0 | O66: =L66+N66 -> $4,705
A67: 37 | B67: C.1 | C67: C.1 | D67: Native Backfill for 36'' RCP Pipe | E67: 124 | F67: 5% | G67: 130 | H67: CY | I67: 0.23 | J67: 29.32 | K67: $58.68 | L67: $1,720.69 | M67: 0 | N67: 0 | O67: $1,721
A68: 38 | B68: C.1 | C68: C.1 | D68: Pipe Zone Backfill for 36'' RCP Pipe ALDOT #78 Crushed Stone | E68: 40 | F68: 5% | G68: 42 | H68: CY | I68: 0.14 | J68: 5.69 | K68: $58.68 | L68: $333.80 | M68: $18.90 | N68: $796.38 | O68: $1,130
A69: 39 | B69: C.1 | C69: C.1 | D69: Bedding for 36'' RCP Pipe ALDOT #78 Crushed Stone | E69: 8 | F69: 5% | G69: 8 | H69: CY | I69: 0.14 | J69: 1.10 | K69: $58.68 | L69: $64.55 | M69: $18.90 | N69: $154.00 | O69: $219
A71: 40 | B71: C.1 | C71: C.1 | D71: Excavation for 18'' HDPE Pipe | E71: 54 | F71: 5% | G71: =E71+(E71*F71) -> 57 | H71: CY | I71: 0.39 | J71: =I71*G71 -> 22.43 | K71: $58.68 | L71: =K71*J71 -> $1,316.38 | M71: 0 | N71: =M71*G71 -> 0 | O71: =L71+N71 -> $1,316
A72: 41 | B72: C.1 | C72: C.1 | D72: Native Backfill for 18'' HDPE Pipe | E72: 41 | F72: 5% | G72: 43 | H72: CY | I72: 0.23 | J72: 9.61 | K72: $58.68 | L72: $564.09 | M72: 0 | N72: 0 | O72: $564
A73: 42 | B73: C.1 | C73: C.1 | D73: Pipe Zone Backfill for 18'' HDPE Pipe ALDOT #78 Crushed Stone | E73: 9 | F73: 5% | G73: 9 | H73: CY | I73: 0.14 | J73: 1.28 | K73: $58.68 | L73: $75.03 | M73: $18.90 | N73: $179.00 | O73: $254
A74: 43 | B74: C.1 | C74: C.1 | D74: Bedding for 18'' HDPE Pipe ALDOT #78 Crushed Stone | E74: 2 | F74: 5% | G74: 2 | H74: CY | I74: 0.14 | J74: 0.32 | K74: $58.68 | L74: $18.80 | M74: $18.90 | N74: $44.85 | O74: $64
A76: =IF(H76<>"",1+MAX(A66:A75),"") -> 44 | B76: C.1 | C76: C.1 | D76: 3'-10''x3'-10''x11' Storm Junction Box | E76: =(3.83*3.83*11/27)*1 -> 6 | F76: 5% | G76: =E76+(E76*F76) -> 6 | H76: CY | I76: 0.39 | J76: =I76*G76 -> 2.47 | K76: $58.68 | L76: =K76*J76 -> $144.99 | M76: 0 | N76: =M76*G76 -> 0 | O76: =L76+N76 -> $145
A77: 45 | B77: C.1 | C77: C.1 | D77: 5'-4''x5'-4''x11'-4'' Storm Junction Box | E77: =(5.33*5.33*11.33/27)*2 -> 24 | F77: 5% | G77: 25 | H77: CY | I77: 0.39 | J77: 9.86 | K77: $58.68 | L77: $578.43 | M77: 0 | N77: 0 | O77: $578
A78: 46 | B78: C.1 | C78: C.1 | D78: 5'-10''x5'-10''x11'-4'' Storm Junction Box | E78: =(5.83*5.83*11.33/27)*1 -> 14 | F78: 5% | G78: 15 | H78: CY | I78: 0.39 | J78: 5.90 | K78: $58.68 | L78: $346.02 | M78: 0 | N78: 0 | O78: $346
D80: Earthwork for Foundation
A81: 47 | B81: S1.1 | C81: S1.1 | D81: Excavation for Grade Beam | E81: =E17 -> 18 | F81: 5% | G81: =E81+(E81*F81) -> 19 | H81: CY | I81: 0.39 | J81: =I81*G81 -> 7.42 | K81: $58.68 | L81: =K81*J81 -> $435.20 | M81: 0 | N81: =M81*G81 -> 0 | O81: =L81+N81 -> $435
A82: 48 | B82: S1.1 | C82: S1.1 | D82: Excavation for Pad Footings | E82: =(3.5*3.5*2.5*4/27)+(2.5*2.5*2.5*4/27)+(3*3*2.5*4/27) -> 10 | F82: 5% | G82: =E82+(E82*F82) -> 11 | H82: CY | I82: 0.39 | J82: =I82*G82 -> 4.21 | K82: $58.68 | L82: =K82*J82 -> $247.10 | M82: 0 | N82: =M82*G82 -> 0 | O82: =L82+N82 -> $247
A83: 49 | B83: S1.1 | C83: S1.1 | D83: Native Backfill for Pad Footing | E83: =E82-(E24+E27+E30)-((1.33*1.5*(3.5+2.5+3)*4)/27) -> 3 | F83: 5% | G83: 4 | H83: CY | I83: 0.23 | J83: 0.82 | K83: $58.68 | L83: $47.84 | M83: 0 | N83: 0 | O83: $48
D85: Soil Hauling
A86: 50 | D86: Soil Export Fluff Factor Applied | E86: =((E66+E71+E76+E77+E78+E81+E82)-(SUM(E67:E69,E72:E74,E83)))*1.33 -> 124 | F86: 5% | G86: =E86+(E86*F86) -> 130 | H86: CY | I86: 0.17 | J86: =I86*G86 -> 21.91 | K86: $58.68 | L86: =K86*J86 -> $1,285.56 | M86: 0 | N86: =M86*G86 -> 0 | O86: =L86+N86 -> $1,286
D88: Grading
D90: Clearing and Grubbing
A91: 51 | D91: Clearing and Grubbing Total Area: 9770 SF | E91: 1 | F91: 0% | G91: =E91+(E91*F91) -> 1 | H91: LS | I91: 241.81 | J91: =I91*G91 -> 241.81 | K91: $58.68 | L91: =K91*J91 -> $14,189.26 | M91: 0 | N91: =M91*G91 -> 0 | O91: =L91+N91 -> $14,189
D93: Top Soil Removal
A94: 52 | D94: 6" Top Soil Removal -We Assumed 6" Top Soil Stripping, Please Confirm If Not Required | E94: 179 | F94: 10% | G94: =E94+(E94*F94) -> 197 | H94: CY | I94: 0.39 | J94: =I94*G94 -> 77.69 | K94: $58.68 | L94: =K94*J94 -> $4,558.83 | M94: 0 | N94: =M94*G94 -> 0 | O94: =L94+N94 -> $4,559
A96: 53 | D96: Haul Away Top Soil Striping (14 CY/LOAD) | E96: =G94/14 -> 14 | F96: 0% | G96: =E96+(E96*F96) -> 14 | H96: LOADS | I96: 5.06 | J96: =I96*G96 -> 71.35 | K96: $58.68 | L96: =K96*J96 -> $4,186.68 | M96: 0 | N96: =M96*G96 -> 0 | O96: =L96+N96 -> $4,187
D98: Land Grading
A99: 54 | D99: Cut for mass grading as per proposed & existing contours | E99: 4 | F99: 10% | G99: =E99+(E99*F99) -> 5 | H99: CY | I99: 0.39 | J99: =I99*G99 -> 1.92 | K99: $58.68 | L99: =K99*J99 -> $112.59 | M99: 0 | N99: =M99*G99 -> 0 | O99: =L99+N99 -> $113
A100: 55 | D100: Fill for mass grading as per proposed & existing contours | E100: 692 | F100: 10% | G100: 761 | H100: CY | I100: 0.14 | J100: 102.78 | K100: $58.68 | L100: $6,031.12 | M100: $18.90 | N100: $14,389.17 | O100: $20,420
A101: 56 | D101: Net Fill | E101: =E100-E99 -> 688 | F101: 10% | G101: 756 | H101: CY | I101: 0.14 | J101: 102.12 | K101: $58.68 | L101: $5,992.52 | M101: $18.90 | N101: $14,297.08 | O101: $20,290
A103: 57 | D103: Loads to be Imported (14 CY/LOAD) | E103: =G101/14 -> 54 | F103: 0% | G103: =E103+(E103*F103) -> 54 | H103: LOADS | I103: 5.06 | J103: =I103*G103 -> 273.54 | K103: $58.68 | L103: =K103*J103 -> $16,051.38 | M103: 0 | N103: =M103*G103 -> 0 | O103: =L103+N103 -> $16,051
D105: • For soil import I have assumed (14 CY/LOAD). Please verify.
D107: SUBTOTAL | L107: =IF(H107<>"",0.4*N107,"") ->  | P107: =SUM(O65:O106) -> $92,866
C108: 320000 | D108: DIVISION 32 — EXTERIOR IMPROVEMENTS
D110: Concrete Flat Work
A111: 58 | B111: C.1 | C111: C.1 | D111: 5'' Thick concrete Pavement | E111: 427 | F111: 5% | G111: =E111+(E111*F111) -> 448 | H111: SF | I111: 0.02 | J111: =I111*G111 -> 11.09 | K111: $58.68 | L111: =K111*J111 -> $650.98 | M111: $3.47 | N111: =M111*G111 -> $1,553.13 | O111: =L111+N111 -> $2,204
A112: 59 | B112: C.1 | C112: C.1 | D112: 10''x10'' WWM | E112: 427 | F112: 5% | G112: =E112+(E112*F112) -> 448 | H112: SF | I112: 0.01 | J112: =I112*G112 -> 5.55 | K112: $58.68 | L112: =K112*J112 -> $325.49 | M112: $1.73 | N112: =M112*G112 -> $776.57 | O112: =L112+N112 -> $1,102
A113: 60 | B113: C.1 | C113: C.1 | D113: 4'' ALDOT section 825 B Crushed Aggregate Base Course | E113: =0.33*E111/27 -> 5 | F113: 5% | G113: 5 | H113: CY | I113: 0.14 | J113: 0.74 | K113: $58.68 | L113: $43.40 | M113: $18.90 | N113: $103.54 | O113: $147
A114: 61 | B114: C.1 | C114: C.1 | D114: Curing Compound Assumed | E114: =E111 -> 427 | F114: 5% | G114: 448 | H114: SF | I114: 0.00 | J114: 0.40 | K114: $58.68 | L114: $23.67 | M114: $0.13 | N114: $56.48 | O114: $80
A115: 62 | B115: C.1 | C115: C.1 | D115: 1/8''x1'' Tooled control joints | E115: =E111/5 -> 85 | F115: 5% | G115: 90 | H115: LF | I115: 0.01 | J115: 0.97 | K115: $58.68 | L115: $56.81 | M115: $1.51 | N115: $135.55 | O115: $192
A116: 63 | B116: C.1 | C116: C.1 | D116: Formwork (50.44 LF) | E116: =50.44*0.42 -> 21 | F116: 5% | G116: 22 | H116: SF | I116: 0.02 | J116: 0.50 | K116: $58.68 | L116: $29.37 | M116: $3.15 | N116: $70.07 | O116: $99
A118: 64 | B118: C.1 | C118: C.1 | D118: 5'' Thick Concrete Driveway | E118: 966 | F118: 5% | G118: =E118+(E118*F118) -> 1014 | H118: SF | I118: 0.02 | J118: =I118*G118 -> 25.09 | K118: $58.68 | L118: =K118*J118 -> $1,472.53 | M118: $3.47 | N118: =M118*G118 -> $3,513.20 | O118: =L118+N118 -> $4,986
A119: 65 | B119: C.1 | C119: C.1 | D119: 10''x10'' WWM | E119: =E118 -> 966 | F119: 5% | G119: 1014 | H119: SF | I119: 0.01 | J119: 12.55 | K119: $58.68 | L119: $736.27 | M119: $1.73 | N119: $1,756.60 | O119: $2,493
A120: 66 | B120: C.1 | C120: C.1 | D120: 4'' ALDOT section 825 B Crushed Aggregate Base Course | E120: =0.33*E118/27 -> 12 | F120: 5% | G120: 12 | H120: CY | I120: 0.14 | J120: 1.67 | K120: $58.68 | L120: $98.17 | M120: $18.90 | N120: $234.21 | O120: $332
A121: 67 | B121: C.1 | C121: C.1 | D121: Curing Compound Assumed | E121: =E118 -> 966 | F121: 5% | G121: 1014 | H121: SF | I121: 0.00 | J121: 0.91 | K121: $58.68 | L121: $53.55 | M121: $0.13 | N121: $127.75 | O121: $181
A122: 68 | B122: C.1 | C122: C.1 | D122: 1/8''x1'' Tooled control joints | E122: =E118/5 -> 193 | F122: 5% | G122: 203 | H122: LF | I122: 0.01 | J122: 2.19 | K122: $58.68 | L122: $128.51 | M122: $1.51 | N122: $306.61 | O122: $435
A123: 69 | B123: C.1 | C123: C.1 | D123: Formwork (121.14 LF) | E123: =121.14*0.42 -> 51 | F123: 5% | G123: 53 | H123: SF | I123: 0.02 | J123: 1.20 | K123: $58.68 | L123: $70.53 | M123: $3.15 | N123: $168.28 | O123: $239
A125: 70 | B125: C.1 | C125: C.1 | D125: 4'' Thick Concrete Slab | E125: 112 | F125: 5% | G125: =E125+(E125*F125) -> 117 | H125: SF | I125: 0.02 | J125: =I125*G125 -> 2.37 | K125: $58.68 | L125: =K125*J125 -> $139.18 | M125: $2.84 | N125: =M125*G125 -> $332.06 | O125: =L125+N125 -> $471
A126: 71 | B126: C.1 | C126: C.1 | D126: 10''x10'' WWM | E126: =E125 -> 112 | F126: 5% | G126: 117 | H126: SF | I126: 0.01 | J126: 1.45 | K126: $58.68 | L126: $85.05 | M126: $1.73 | N126: $202.92 | O126: $288
A127: 72 | B127: C.1 | C127: C.1 | D127: 4'' ALDOT section 825 B Crushed Aggregate Base Course | E127: =0.33*E125/27 -> 1 | F127: 5% | G127: 1 | H127: CY | I127: 0.14 | J127: 0.19 | K127: $58.68 | L127: $11.34 | M127: $18.90 | N127: $27.06 | O127: $38
A128: 73 | B128: C.1 | C128: C.1 | D128: Curing Compound Assumed | E128: =E125 -> 112 | F128: 5% | G128: 117 | H128: SF | I128: 0.00 | J128: 0.11 | K128: $58.68 | L128: $6.19 | M128: $0.13 | N128: $14.76 | O128: $21
A129: 74 | B129: C.1 | C129: C.1 | D129: 1/8''x1'' Tooled control joints | E129: =E125/5 -> 22 | F129: 5% | G129: 23 | H129: LF | I129: 0.01 | J129: 0.25 | K129: $58.68 | L129: $14.85 | M129: $1.51 | N129: $35.42 | O129: $50
A130: 75 | B130: C.1 | C130: C.1 | D130: Formwork (31.5 LF) | E130: =31.5*0.42 -> 13 | F130: 5% | G130: 14 | H130: SF | I130: 0.02 | J130: 0.31 | K130: $58.68 | L130: $18.34 | M130: $3.15 | N130: $43.76 | O130: $62
D132: Misc.
A133: 76 | B133: C.1 | C133: C.1 | D133: Float Finish | E133: =E111+E118+E125 -> 1504 | F133: 5% | G133: =E133+(E133*F133) -> 1579 | H133: SF | I133: 0.01 | J133: =I133*G133 -> 15.63 | K133: $58.68 | L133: =K133*J133 -> $917.45 | M133: $1.39 | N133: =M133*G133 -> $2,188.87 | O133: =L133+N133 -> $3,106
D135: SUBTOTAL | L135: =IF(H135<>"",0.4*N135,"") ->  | P135: =SUM(O109:O134) -> $16,529
C136: 330000 | D136: DIVISION 33 — UTILITIES
D138: Storm Sewer
A140: =IF(H140<>"",1+MAX(A130:A139),"") ->  | D140: Pipes:
A141: 77 | B141: C.1 | C141: C.1 | D141: 36'' RCP Pipe | E141: 84 | F141: 5% | G141: =E141+(E141*F141) -> 88 | H141: LF | I141: 0.49 | J141: =I141*G141 -> 42.75 | K141: $58.68 | L141: =K141*J141 -> $2,508.74 | M141: $68.04 | N141: =M141*G141 -> $5,985.41 | O141: =L141+N141 -> $8,494
A142: 78 | B142: C.1 | C142: C.1 | D142: 18'' HDPE Pipe | E142: 35 | F142: 5% | G142: 37 | H142: LF | I142: 0.27 | J142: 9.72 | K142: $58.68 | L142: $570.59 | M142: $37.17 | N142: $1,361.31 | O142: $1,932
D144: Storm Junction Box : See SS on right for construction details
D145: 3'-10''x3'-10''x11' Storm Junction Box (1 EA)
A146: 79 | B146: C.1 | C146: C.1 | D146: 8'' Thick Concrete Base Slab | E146: =(3.83*3.83*0.667/27)*1 -> 0.4 | F146: 5% | G146: =E146+(E146*F146) -> 0 | H146: CY | I146: 1.18 | J146: =I146*G146 -> 0.45 | K146: $58.68 | L146: =K146*J146 -> $26.37 | M146: $257.25 | N146: =M146*G146 -> $97.88 | O146: =L146+N146 -> $124
A147: 80 | B147: C.1 | C147: C.1 | D147: 8'' Thick Concrete Top Slab | E147: =(3.83*3.83*0.667/27)*1 -> 0.4 | F147: 5% | G147: 0 | H147: CY | I147: 1.18 | J147: 0.45 | K147: $58.68 | L147: $26.37 | M147: $257.25 | N147: $97.88 | O147: $124
A148: 81 | B148: C.1 | C148: C.1 | D148: 6'' Thick concrete Walls | E148: =(3.83*4*11*0.5/27)*1 -> 3 | F148: 5% | G148: 3 | H148: CY | I148: 1.18 | J148: 3.87 | K148: $58.68 | L148: $227.13 | M148: $257.25 | N148: $842.95 | O148: $1,070
A149: 82 | B149: C.1 | C149: C.1 | D149: #5 @ 12'' O.C E.W for slabs & Walls | E149: =(((3.83*3.83)+(3.83*3.83)+(3.83*4*11))/1)*2*1.043*1.1 -> 454 | F149: 5% | G149: =E149+(E149*F149) -> 477 | H149: LBS | I149: 0.01 | J149: =I149*G149 -> 3.86 | K149: $58.68 | L149: =K149*J149 -> $226.58 | M149: $1.13 | N149: =M149*G149 -> $540.58 | O149: =L149+N149 -> $767
A150: 83 | B150: C.1 | C150: C.1 | D150: Grout @ Pipe Invert | E150: =3.83*3.83*1/27 -> 1 | F150: 5% | G150: =E150+(E150*F150) -> 1 | H150: CY | I150: 0.79 | J150: =I150*G150 -> 0.45 | K150: $58.68 | L150: =K150*J150 -> $26.36 | M150: $110.25 | N150: =M150*G150 -> $62.89 | O150: =L150+N150 -> $89
A151: 84 | B151: C.1 | C151: C.1 | D151: Manhole Steps @ 18'' O.C | E151: =11/1.5 -> 7 | F151: 0% | G151: =E151+(E151*F151) -> 7 | H151: EA | I151: 0.27 | J151: =I151*G151 -> 1.98 | K151: $58.68 | L151: =K151*J151 -> $116.19 | M151: $100.80 | N151: =M151*G151 -> $739.20 | O151: =L151+N151 -> $855
A152: 85 | B152: C.1 | C152: C.1 | D152: Standard Manhole Ring & Cover | E152: 1 | F152: 0% | G152: =E152+(E152*F152) -> 1 | H152: EA | I152: 1.46 | J152: =I152*G152 -> 1.46 | K152: $58.68 | L152: =K152*J152 -> $85.82 | M152: $546.00 | N152: =M152*G152 -> $546.00 | O152: =L152+N152 -> $632
D154: 5'-4''x5'-4''x11'-4'' Storm Junction Box (2 EA)
A155: 86 | B155: C.1 | C155: C.1 | D155: 8'' Thick Concrete Base Slab | E155: =(5.33*5.33*0.667/27)*2 -> 1.4 | F155: 5% | G155: =E155+(E155*F155) -> 1 | H155: CY | I155: 1.18 | J155: =I155*G155 -> 1.74 | K155: $58.68 | L155: =K155*J155 -> $102.16 | M155: $257.25 | N155: =M155*G155 -> $379.13 | O155: =L155+N155 -> $481
A156: 87 | B156: C.1 | C156: C.1 | D156: 8'' Thick Concrete Top Slab | E156: =(5.33*5.33*0.667/27)*2 -> 1.4 | F156: 5% | G156: 1 | H156: CY | I156: 1.18 | J156: 1.74 | K156: $58.68 | L156: $102.16 | M156: $257.25 | N156: $379.13 | O156: $481
A157: 88 | B157: C.1 | C157: C.1 | D157: 6'' Thick concrete Walls | E157: =(5.33*4*11.33*0.5/27)*2 -> 9 | F157: 5% | G157: 9 | H157: CY | I157: 1.18 | J157: 11.10 | K157: $58.68 | L157: $651.14 | M157: $257.25 | N157: $2,416.56 | O157: $3,068
A158: 89 | B158: C.1 | C158: C.1 | D158: #5 @ 12'' O.C E.W for slabs & Walls | E158: =((((5.33*5.33)+(5.33*5.33)+(5.33*4*11.333))/1)*2*1.043*1.1)*2 -> 1370 | F158: 5% | G158: 1438 | H158: LBS | I158: 0.01 | J158: 11.65 | K158: $58.68 | L158: $683.53 | M158: $1.13 | N158: $1,630.77 | O158: $2,314
A159: 90 | B159: C.1 | C159: C.1 | D159: Grout @ Pipe Invert | E159: =(5.33*5.33*1/27)*2 -> 2 | F159: 5% | G159: 2 | H159: CY | I159: 0.79 | J159: 1.74 | K159: $58.68 | L159: $102.11 | M159: $110.25 | N159: $243.61 | O159: $346
A160: 91 | B160: C.1 | C160: C.1 | D160: Manhole Steps @ 18'' O.C | E160: =(11.33/1.5)*2 -> 15 | F160: 0% | G160: =E160+(E160*F160) -> 15 | H160: EA | I160: 0.27 | J160: =I160*G160 -> 4.08 | K160: $58.68 | L160: =K160*J160 -> $239.34 | M160: $100.80 | N160: =M160*G160 -> $1,522.75 | O160: =L160+N160 -> $1,762
A161: 92 | B161: C.1 | C161: C.1 | D161: Standard Manhole Ring & Cover | E161: 2 | F161: 0% | G161: 2 | H161: EA | I161: 1.46 | J161: 2.93 | K161: $58.68 | L161: $171.64 | M161: $546.00 | N161: $1,092.00 | O161: $1,264
D163: 5'-10''x5'-10''x11'-4'' Storm Junction Box (1 EA)
A164: 93 | B164: C.1 | C164: C.1 | D164: 8'' Thick Concrete Base Slab | E164: =(5.83*5.83*0.667/27)*1 -> 0.8 | F164: 5% | G164: 1 | H164: CY | I164: 1.18 | J164: 1.04 | K164: $58.68 | L164: $61.11 | M164: $257.25 | N164: $226.80 | O164: $288
A165: 94 | B165: C.1 | C165: C.1 | D165: 8'' Thick Concrete Top Slab | E165: =(5.83*5.83*0.667/27)*1 -> 0.8 | F165: 5% | G165: 1 | H165: CY | I165: 1.18 | J165: 1.04 | K165: $58.68 | L165: $61.11 | M165: $257.25 | N165: $226.80 | O165: $288
A166: 95 | B166: C.1 | C166: C.1 | D166: 6'' Thick concrete Walls | E166: =(5.83*4*11.33*0.5/27)*1 -> 5 | F166: 5% | G166: 5 | H166: CY | I166: 1.18 | J166: 6.07 | K166: $58.68 | L166: $356.11 | M166: $257.25 | N166: $1,321.63 | O166: $1,678
A167: 96 | B167: C.1 | C167: C.1 | D167: #5 @ 12'' O.C E.W for slabs & Walls | E167: =(((5.83*5.83)+(5.83*5.83)+(5.83*4*11.33))/1)*2*1.043*1.1 -> 762 | F167: 5% | G167: 800 | H167: LBS | I167: 0.01 | J167: 6.48 | K167: $58.68 | L167: $380.42 | M167: $1.13 | N167: $907.61 | O167: $1,288
A168: 97 | B168: C.1 | C168: C.1 | D168: Grout @ Pipe Invert | E168: =5.83*5.83*1/27 -> 1 | F168: 5% | G168: 1 | H168: CY | I168: 0.79 | J168: 1.04 | K168: $58.68 | L168: $61.08 | M168: $110.25 | N168: $145.73 | O168: $207
A169: 98 | B169: C.1 | C169: C.1 | D169: Manhole Steps @ 18'' O.C | E169: =11.33/1.5 -> 8 | F169: 0% | G169: 8 | H169: EA | I169: 0.27 | J169: 2.04 | K169: $58.68 | L169: $119.67 | M169: $100.80 | N169: $761.38 | O169: $881
A170: 99 | B170: C.1 | C170: C.1 | D170: Standard Manhole Ring & Cover | E170: 1 | F170: 0% | G170: 1 | H170: EA | I170: 1.46 | J170: 1.46 | K170: $58.68 | L170: $85.82 | M170: $546.00 | N170: $546.00 | O170: $632
A172: 100 | B172: C.1 | C172: C.1 | D172: Formwork for storm junction boxes | E172: =(3.83*3.83)+(3.83*4*11)+(5.33*5.33*2)+(5.33*4*11.33*2)+(5.83*5.83)+(5.83*4*11.33) -> 1021 | F172: 5% | G172: =E172+(E172*F172) -> 1072 | H172: SF | I172: 0.02 | J172: =I172*G172 -> 24.13 | K172: $58.68 | L172: =K172*J172 -> $1,415.87 | M172: $3.15 | N172: =M172*G172 -> $3,378.02 | O172: =L172+N172 -> $4,794
A174: =IF(H174<>"",1+MAX(A145:A173),"") ->  | D174: SUBTOTAL | L174: =IF(H174<>"",0.4*N174,"") ->  | P174: =SUM(O137:O173) -> $33,859
A175: SUB TOTAL | L175: =SUM(L6:L174) -> $97,689 | N175: =SUM(N6:N174) -> $112,520 | O175: =SUM(O6:O174) -> $210,209 | P175: =SUM(P6:P174) -> $210,209
A176: TAX | N176: 8.5% | P176: =P175*N176 -> $17,868
A177: PROFIT | N177: 10% | P177: =P175*N177 -> $21,021
A178: CONTIGENCIES | N178: 5% | P178: =P175*N178 -> $10,510
A179: TOTAL BASE BID | P179: =SUM(P175:P178) -> $259,608
A180: General Exclusions: Any kind of controlled inspection, contaminated material, architect and engineering fees, security, building charges, signage, sign off, protection of adjoining building (if any), any work not mentioned above.
A181: General Notes: The prices used are taken from RS Means online i.e. the standard pricing, the company is not responsible for any kind of variations in the prices. So it is preferred to review the prices.

Sheet UJ (hidden)
C2: PROJECT: | D2: 625 PARK AVE PHASE 1B
C3: ADDRESS: | D3: 625 PARK AVENUE,
D4: NEW YORK, NY-10065.
H6: DATE | I6: =TODAY() -> 2026-07-28
A7: ITEM # | B7: CSI SEC. | C7: DESCRIPTION | D7: QTY. | E7: WASTE | F7: QTY. W/ WASTE | G7: UNIT | H7: UNIT COST | I7: TRADE COST | L7: Single side areas
C8: SCOPE OF WORK | L8: Dry | M8: Wet
A9: 1 | B9: 09 29 | C9: 2 layered 5/8" thick USG fiberock brand panels for walls and ceilings. | D9: 11,635 | E9: 10% | F9: =D9*(1+E9) -> 12,799 | G9: sf | H9: $4.0 | I9: =H9*F9 -> $51,194 | J9: Type 1+Type 4+Type 6+ceiling | K9: Type 1 | L9: =2520-80 -> 2440 | M9: 280 | N9: =(2440*2+290*2+2345+3830) -> 11635
A10: 2 | B10: 09 29 | C10: 2 layerd 5/8" thick USG fiberock aqua tough brand panels for wall and ceilings in wet areas. | D10: 1,185 | E10: 10% | F10: =D10*(1+E10) -> 1,304 | G10: sf | H10: $4.5 | I10: =H10*F10 -> $5,866 | J10: Type 1+Type 4+Type 6+wet ceiling | K10: Type 2 | L10: =210-80 -> 130 | M10: 80 | N10: =(280*2+325+300) -> 1185
A11: 3 | B11: 09 29 | C11: 2 layered 2 HR rated 5/8" thick USG fiberock brand panels for walls. | D11: 260 | E11: 10% | F11: =D11*(1+E11) -> 286 | G11: sf | H11: $4.5 | I11: =H11*F11 -> $1,287 | J11: Type 2 | K11: Type 3 | N11: =130*2 -> 260
A12: 4 | B12: 09 29 | C12: 2 layered 2 HR rated 5/8" thick USG fiberock aqua tough brand panels for walls in wet areas. | D12: 160 | E12: 10% | F12: 176 | G12: sf | H12: $5.0 | I12: =H12*F12 -> $880 | J12: Type 2 | K12: Type 4 | L12: 290 | N12: =80*2 -> 160
A13: 5 | B13: 09 29 | C13: 3 layered 3 HR rated 5/8" thick USG fiberock brand panels for walls. | D13: 300 | E13: 10% | F13: 330 | G13: sf | H13: $4.0 | I13: =H13*F13 -> $1,320 | J13: Type 7 | K13: Type 5 | L13: 1200 | N13: =150*2 -> 300
A14: 6 | B14: 09 26 | C14: 3/32" thick gypsum veneer plaster skim coat. | D14: 14,740 | E14: 10% | F14: 16,214 | G14: sf | H14: $4.0 | I14: =H14*F14 -> $64,856 | J14: Type 1+Type 2+ Type 4+Type 5+Type 6 +Type 7 | K14: Type 6 | L14: =2670-325 -> 2345 | M14: 325 | N14: =SUM(N9:N13)+L13 -> 14740 | O14: =SUM(L9:M10)*2+L13+SUM(L14:M14)+L15*2+SUM(L17:M17)+L12*2 -> 14740 | P14: =N14-O14 -> 0
A15: 7 | B15: 09 22 16 | C15: 3-5/8" steel studs 20 GA @ 16" O.C. | D15: 5,750 | E15: 10% | F15: 6,325 | G15: sf | H15: $2.5 | I15: =H15*F15 -> $15,813 | J15: Type 1+Type 2+Type 6+Type 7 | K15: Type 7 | L15: 150 | N15: =SUM(L9:M10)+SUM(L14:M15) -> 5750
A16: 8 | B16: 10 22 16 | C16: 1-5/8" steel studs 20 GA @ 12" O.C. | D16: 290 | E16: 10% | F16: 319 | G16: sf | H16: $2.0 | I16: $638 | J16: Type 4 | K16: Type 8 | L16: 20
A17: 8 | B17: 09 22 26 | C17: Ceiling suspension system. | D17: 4,130 | E17: 10% | F17: 4,543 | G17: sf | H17: $3.0 | I17: =H17*F17 -> $13,629 | K17: Ceiling | L17: 3830 | M17: 300 | N17: =SUM(L17:M17) -> 4130
A18: 9 | B18: 07 21 16 | C18: Batt Insulation. | D18: 5,600 | E18: 5% | F18: 5,880 | G18: sf | H18: $2.0 | I18: =H18*F18 -> $11,760 | J18: Type 1+Type 2+ Type 6 | N18: =SUM(L9:M10)+SUM(L14:M14) -> 5600
A19: 10 | B19: 07 21 16 | C19: Batt Insulation type SAFB. | D19: 150 | E19: 10% | F19: 165 | G19: sf | H19: $2.2 | I19: =H19*F19 -> $363 | J19: Type 7 | N19: 150
A21: SUB TOTAL | I21: =SUM(I9:I19) -> $167,605
A22: INSURANCE (3%) | I22: =(3/100)*I21 -> $5,028
A23: TOTAL BASE BID | I23: =SUM(I21:I22) -> $172,633
C25: Exclusions
B26: 1 | C26: Mouldings
B27: 2 | C27: Patch work
B28: 3 | C28: Fixtures
B29: 4 | C29: Electrical work
B30: 5 | C30: Stone and/or tile work
B31: 6 | C31: Wall type 8 [no details on provided on the drawing]

Sheet DETAIL (2) (hidden)
B2: PROJECT: | C2: 625 PARK AVE PHASE 1B
B3: ADDRESS: | C3: 625 PARK AVENUE
C4: NEW YORK, NY 10065
E6: DATE | F6: =TODAY() -> 2026-07-28
A7: ITEM # | B7: DESCRIPTION | C7: UNIT COST | D7: QTY. | E7: UNIT | F7: TRADE COST
B8: SCOPE OF WORK
A9: 1 | B9: 5/8" 2 layered USG fiberock brand panels. | D9: =((2358+277+2077)-644)+3830 -> 7,898 | E9: sf | F9: =C9*D9 -> 0 | G9: Type 1+Type 4+Type 6+ceiling
A10: 2 | B10: 5/8" 2 layered USG fiberock aqua tough brand panels. (Wet area). | D10: =644+292 -> 936 | E10: sf | F10: =C10*D10 -> 0 | G10: Type 1+Type 4+Type 6+wet ceiling | I10: Height 9'6"
A11: 3 | B11: 2 HR rated 5/8" 2 layered USG fiberock brand panels. | D11: =206-78 -> 128 | E11: sf | F11: 0 | G11: Type 2 | I11: For Doors & Cabinets 1'3"
A12: 4 | B12: 2 HR rated 5/8" 2 layered USG fiberock aqua tough brand panels. (Wet area). | D12: 78 | E12: sf | F12: 0 | G12: Type 2
A13: 5 | B13: 3 HR rated 5/8" 3 layered USG fiberock brand panels. | D13: 148 | E13: sf | F13: 0 | G13: Type 7
A14: 6 | B14: 3/32" thick gypsum veneer plaster skim coat. | D14: =2538+206+277+1343+2077+148 -> 6,589 | E14: sf | F14: 0 | G14: Type 1+Type 2+ Type 4+Type 5+Type 6 +Type 7
A15: 7 | B15: 3 5/8" steel studs 20 GA @ 16" O.C. | D15: 4,968 | E15: sf | F15: 0 | G15: Type 1+Type 2+Type 6+Type 7
A16: 8 | B16: 1 5/8" steel studs 20 GA @ 12" O.C. | D16: 277 | E16: sf | F16: 0 | G16: Type 4
A17: 9 | B17: Batt sound Insulation. | D17: =2538+206+2077 -> 4,821 | E17: sf | F17: 0 | G17: Type 1+Type 2+ Type 6
A18: 10 | B18: Batt sound Insulation type SAFB. | D18: 148 | E18: sf | F18: 0 | G18: Type 7 | H18: QTY Details
H19: Type 1 | I19: 2538 | J19: 2520
A20: TOTAL | F20: =SUM(F9:F18) -> 0 | H20: Type 2 | I20: 205 | J20: 206
B21: Exclusions | H21: Type 3 | I21: N/A
A22: 1 | B22: Mouldings | H22: Type 4 | I22: 277 | J22: 290
A23: 2 | B23: Patch work | H23: Type 5 | I23: 1342 | J23: 1200
A24: 3 | B24: Fixtures | H24: Type 6 | I24: 2077 | J24: 2670
A25: 4 | B25: Electrical work | H25: Type 7 | I25: 148 | J25: 150
A26: 5 | B26: Stone and/or tile work | H26: Type 8 | I26: 22 | J26: 20 | K26: No details given
A27: 6 | H27: Ceiling | I27: 3830
H28: Wet Ceiling | I28: 292
B31: DETAILS
B32: Type 1- Interior Partition | G32: Type 2- 2HR rated Interior Partition | H32: Type
B33: 2 layers 5/8' USG fiberock brand panels (Fiberock aqua tough brand at all wet areas) Glue second layer, finished with 3-32" thick gypsum veneer plaster skim coat. 3 5/8" Stl studs 20 GA @16" O.C with Batt insulation. 2 layers 5/8" USG fiberock brand panels(Fiberock aqua tough brand at all wet areas finished 3-32" thick gypsum veneer plaster skim coat | G33: 2 layers 5/8' USG fiberock brand panels (Fiberock aqua tough brand at all wet areas) Glue second layer, finished with 3-32" thick gypsum veneer plaster skim coat. 3 5/8" Stl studs 20 GA @16" O.C with Batt insulation. 2 layers 5/8" USG fiberock brand panels(Fiberock aqua tough brand at all wet areas finished 3-32" thick gypsum veneer plaster skim coat
B35: TYPE 3 Interior partition at chase | G35: TYPE 4 Pocket door partition
B36: 2 layer 5/8" USG fiberock brand panels ( Fiberock aqua tough brand at all wet areas ) Glue second layer fill batt insulation, finished with 3/32" thick gypsum veneer plaster skim coat. 20 Ga 2-1/2" mtl studs @ 16 O.C. with batt insulation. Pipe chase space. 2 layers 5/8" USG fiberock brand panels (Fiberock aqua tough brand at all wet areas finished with 3/32" thick gypsum veneer plaster skim coat. | G36: 2 Layers 5/8" USG fiberock brand panels (Fiberock Aqua tough brand at all wet areas) Glue second layer, Finished with 3/32" thick gypsum veneer plaster skim coat. 1 5/8" 20 Ga stl studs @12 O.C. 2 layer 5/8" USG fiberock brand panels (fiberock aqua tough brand at wet areas) finished with 3/32" thick gypsum veneer plaster skim coat.
B38: TYPE 5 Existing wall skim coat | G38: TYPE 6 EXISTING WALL- Furring
B39: Apply 3/32" Thick gypsum veneer skim coat. Fill and smooth all imperfections | G39: 3 5/8" 20 Ga stl studs @ 16 O.C. 2 layers 5/8" USG fiberock brand panels dimensions from exterior wall to be varified with architect. Fill with Batt insulation, Finished with 3/32" Thick Gypsum veneer plaster skim coat
B40: TYPE 7 Interior Partition- 3 Hr rated
B41: 3 layer 5/8" USG fiberock brand panels, glue third layer finished with 3/32" thick gypsum veneer plaster skim coat. 3 5/8" stl studs 20 GA @16"O.C. Batt insulation Type SAFB. 3 layer 5/8" USG fiberock brand panels, glue third layer finished with 3-32" thick gypsum veneer plaster skim coat
